fUST/lending_fUST_20251002
["ID","MTS","AMOUNT","RATE_DAILY","PERIOD"]
[388812142,1759384241022,-151.812854,0.00020978,2]
[388812143,1759384241032,-4944.34601,0.00020978,2]
[388812144,1759384241042,-229.109964,0.00020978,2]
[388812145,1759384241052,-4944.34601,0.00020978,2]
[388812146,1759384241062,-229.109964,0.00020978,2]
[388812147,1759384241071,-4944.34601,0.00020978,2]
[388812148,1759384241081,-229.109964,0.00020978,2]
[388812149,1759384241091,-4944.34601,0.00020978,2]
[388812150,1759384241100,-229.109964,0.00020978,2]
[388812151,1759384241109,-4944.34601,0.00020978,2]
[388812152,1759384241120,-229.109964,0.00020978,2]
[388812153,1759384241130,-4944.346005,0.00020978,2]
[388812154,1759384241140,-229.109964,0.00020978,2]
[388812155,1759384241149,-229.10996,0.00020978,2]
[388812156,1759384241159,-151.0,0.00020978,2]
[388812157,1759384241169,-153.709668,0.00020978,2]
[388812158,1759384241178,-151.0,0.00020978,2]
[388812159,1759384241187,-151.0,0.00020978,2]
[388812160,1759384241196,-151.0,0.00020978,2]
[388812161,1759384241205,-151.0,0.00020978,2]
[388812162,1759384241214,-160.249912,0.00020978,2]
[388812163,1759384241223,-151.0,0.00020978,2]
[388812164,1759384241231,-151.0,0.00020978,2]
[388812165,1759384241240,-151.0,0.00020978,2]
[388812166,1759384241250,-217.09829884,0.00020978,2]
[388812167,1759384241260,-151.0,0.00020978,2]
[388812168,1759384241270,-151.0,0.00020978,2]
[388812169,1759384241279,-151.0,0.00020978,2]
[388812170,1759384241291,-151.0,0.00020978,2]
[388812171,1759384241301,-151.0,0.00020978,2]
[388812172,1759384241311,-194.096264,0.00020978,2]
[388812173,1759384241323,-151.0,0.00020978,2]
[388812174,1759384241333,-151.0,0.00020978,2]
[388812175,1759384241342,-151.0,0.00020978,2]
[388812176,1759384241352,-151.0,0.00020978,2]
[388812177,1759384241361,-151.0,0.00020978,2]
[388812178,1759384241370,-163.80817,0.00020978,2]
[388812179,1759384241379,-163.80817,0.00020978,2]
[388812180,1759384241388,-163.80817,0.00020978,2]
[388812181,1759384241398,-163.80817,0.00020978,2]
[388812182,1759384241407,-163.80817,0.00020978,2]
[388812183,1759384241416,-163.80817,0.00020978,2]
[388812184,1759384241425,-163.80817,0.00020978,2]
[388812185,1759384241435,-163.80817,0.00020978,2]
[388812186,1759384241444,-163.80817,0.00020978,2]
[388812187,1759384241453,-163.80817,0.00020978,2]
[388812188,1759384241462,-163.80817,0.00020978,2]
[388812189,1759384241474,-163.80817,0.00020978,2]
[388812190,1759384241483,-163.80817,0.00020978,2]
[388812191,1759384241492,-163.80817,0.00020978,2]
[388812192,1759384241502,-163.80817,0.00020978,2]
[388812193,1759384241512,-163.80817,0.00020978,2]
[388812194,1759384241522,-163.80817,0.00020978,2]
[388812195,1759384241531,-163.80817,0.00020978,2]
[388812196,1759384241541,-163.80817,0.00020978,2]
[388812197,1759384241552,-163.808174,0.00020978,2]
[388812198,1759384241561,-151.0,0.00020978,2]
[388812199,1759384241570,-151.0,0.00020978,2]
[388812200,1759384241579,-151.0,0.00020978,2]
[388812201,1759384241588,-151.0,0.00020978,2]
[388812202,1759384241597,-151.0,0.00020978,2]
[388812203,1759384241607,-151.0,0.00020978,2]
[388812204,1759384241616,-266.692105,0.00020978,2]
[388812205,1759384241625,-152.823349,0.00020978,2]
[388812206,1759384241634,-218.90518,0.00020978,2]
[388812207,1759384241645,-151.0,0.00020978,2]
[388812208,1759384241654,-151.870272,0.00020978,2]
[388812209,1759384241663,-151.0,0.00020978,2]
[388812210,1759384241672,-151.229098,0.00020978,2]
[388812211,1759384241681,-151.0,0.00020978,2]
[388812212,1759384241692,-151.229098,0.00020978,2]
[388812213,1759384241702,-151.0,0.00020978,2]
[388812214,1759384241711,-151.229098,0.00020978,2]
[388812215,1759384241720,-151.0,0.00020978,2]
[388812216,1759384241730,-151.229098,0.00020978,2]
[388812217,1759384241741,-151.0,0.00020978,2]
[388812218,1759384241752,-151.229098,0.00020978,2]
[388812219,1759384241762,-151.229098,0.00020978,2]
[388812220,1759384241772,-151.0,0.00020978,2]
[388812221,1759384241782,-151.229098,0.00020978,2]
[388812222,1759384241792,-151.0,0.00020978,2]
[388812223,1759384241801,-151.229098,0.00020978,2]
[388812224,1759384241811,-151.0,0.00020978,2]
[388812225,1759384241820,-151.229098,0.00020978,2]
[388812226,1759384241830,-195.697187,0.00020978,2]
[388812227,1759384241839,-151.229098,0.00020978,2]
[388812228,1759384241848,-151.229098,0.00020978,2]
[388812229,1759384241857,-151.229098,0.00020978,2]
[388812230,1759384241866,-151.229098,0.00020978,2]
[388812231,1759384241876,-151.229098,0.00020978,2]
[388812232,1759384241885,-151.229098,0.00020978,2]
[388812233,1759384241894,-151.229098,0.00020978,2]
[388812234,1759384241903,-151.229098,0.00020978,2]
[388812235,1759384241912,-151.229098,0.00020978,2]
[388812236,1759384241921,-151.229098,0.00020978,2]
[388812237,1759384241930,-151.0,0.00020978,2]
[388812238,1759384241940,-151.229094,0.00020978,2]
[388812239,1759384241949,-151.0,0.00020978,2]
[388812240,1759384241958,-151.0,0.00020978,2]
[388812241,1759384241968,-157.148126,0.00020978,2]
[388812242,1759384241978,-188.02,0.0002098,3]
[388812243,1759384241987,-564.1,0.0002098,3]
[388812244,1759384241996,-87999.20513128,0.0002099,2]
[388812245,1759384242005,-151.0,0.0002099,2]
[388812246,1759384242015,-151.0,0.0002099,2]
[388812247,1759384242024,-151.0,0.0002099,2]
[388812248,1759384242034,-151.0,0.0002099,2]
[388812249,1759384242045,-151.0,0.0002099,2]
[388812250,1759384242055,-642.291736,0.0002099,2]
[388812251,1759384242065,-642.291736,0.0002099,2]
[388812252,1759384242074,-642.291736,0.0002099,2]
[388812253,1759384242083,-642.291742,0.0002099,2]
[388812254,1759384242093,-151.0,0.0002099,2]
[388812255,1759384242103,-151.0,0.0002099,2]
[388812256,1759384242112,-151.0,0.0002099,2]
[388812257,1759384242122,-151.0,0.0002099,2]
[388812258,1759384242131,-5558.95897351,0.00020992,2]
[388812259,1759384242140,-560.0,0.00021018,2]
[388812260,1759384242149,-560.0,0.0002112,2]
[388812261,1759384242158,-361.0,0.00021138,2]
[388812262,1759384242168,-123.92378372,0.00021145,2]
[388812263,1759384242177,-159.4370845,0.00021152,2]
[388812264,1759384242186,-500.0,0.00021252,2]
[388812265,1759384242197,-161.49693542,0.00021252,2]
[388812266,1759384242208,-44551.7005062,0.00021253,2]
[388812267,1759384242218,-151.0,0.00021253,2]
[388812268,1759384242228,-151.0,0.00021253,2]
[388812269,1759384242239,-151.0,0.00021253,2]
[388812270,1759384242249,-151.0,0.00021253,2]
[388812271,1759384242258,-151.0,0.00021253,2]
[388812272,1759384242267,-151.0,0.00021253,2]
[388812273,1759384242278,-151.0,0.00021253,2]
[388812274,1759384242288,-161.746449,0.00021253,2]
[388812275,1759384242298,-764.20134,0.00021253,2]
[388812276,1759384242308,-764.20134,0.00021253,2]
[388812277,1759384242318,-764.20134,0.00021253,2]
[388812278,1759384242328,-764.20134,0.00021253,2]
[388812279,1759384242338,-153.679561,0.00021253,2]
[388812280,1759384242348,-564.096981,0.00021253,2]
[388812281,1759384242357,-564.096981,0.00021253,2]
[388812282,1759384242476,-564.096981,0.00021253,2]
[388812283,1759384242487,-564.096981,0.00021253,2]
[388812284,1759384242497,-151.0,0.00021253,2]
[388812285,1759384242506,-276.390973,0.00021253,2]
[388812286,1759384242516,-276.390973,0.00021253,2]
[388812287,1759384242524,-276.390973,0.00021253,2]
[388812288,1759384242533,-276.390973,0.00021253,2]
[388812289,1759384242543,-151.0,0.00021253,2]
[388812290,1759384242553,-151.0,0.00021253,2]
[388812291,1759384242562,-151.0,0.00021253,2]
[388812292,1759384242570,-278.791512,0.00021253,2]
[388812293,1759384242580,-153.4775,0.00021253,2]
[388812294,1759384242589,-152.0596386,0.00021253,2]
[388812295,1759384242598,-151.0,0.00021253,2]
[388812296,1759384242608,-151.0,0.00021253,2]
[388812297,1759384242618,-153.604013,0.00021253,2]
[388812298,1759384242628,-151.0,0.00021253,2]
[388812299,1759384242638,-151.0,0.00021253,2]
[388812300,1759384242647,-151.0,0.00021253,2]
[388812301,1759384242656,-151.0,0.00021253,2]
[388812302,1759384242666,-151.0,0.00021253,2]
[388812303,1759384242675,-151.0,0.00021253,2]
[388812304,1759384242684,-154.533556,0.00021253,2]
[388812305,1759384242694,-151.0,0.00021253,2]
[388812306,1759384242704,-151.0,0.00021253,2]
[388812307,1759384242713,-210.511878,0.00021253,2]
[388812308,1759384242724,-151.0,0.00021253,2]
[388812309,1759384242734,-157.551322,0.00021253,2]
[388812310,1759384242743,-151.0,0.00021253,2]
[388812311,1759384242752,-151.0,0.00021253,2]
[388812312,1759384242761,-151.0,0.00021253,2]
[388812313,1759384242771,-151.0,0.00021253,2]
[388812314,1759384242780,-426.013856,0.00021253,2]
[388812315,1759384242790,-426.013856,0.00021253,2]
[388812316,1759384242800,-151.956438,0.00021253,2]
[388812317,1759384242810,-426.013856,0.00021253,2]
[388812318,1759384242821,-426.013856,0.00021253,2]
[388812319,1759384242831,-426.013856,0.00021253,2]
[388812320,1759384242842,-426.013856,0.00021253,2]
[388812321,1759384242852,-426.013856,0.00021253,2]
[388812322,1759384242864,-426.013856,0.00021253,2]
[388812323,1759384242874,-426.013856,0.00021253,2]
[388812324,1759384242886,-426.013856,0.00021253,2]
[388812326,1759384242896,-426.013856,0.00021253,2]
[388812327,1759384242906,-426.013856,0.00021253,2]
[388812328,1759384242918,-426.013856,0.00021253,2]
[388812329,1759384242929,-426.013856,0.00021253,2]
[388812330,1759384242938,-426.013856,0.00021253,2]
[388812331,1759384242947,-426.013856,0.00021253,2]
[388812332,1759384242957,-151.0,0.00021253,2]
[388812333,1759384242966,-151.0,0.00021253,2]
[388812334,1759384242976,-151.0,0.00021253,2]
[388812336,1759384242985,-151.0,0.00021253,2]
[388812337,1759384242994,-151.0,0.00021253,2]
[388812338,1759384243003,-151.0,0.00021253,2]
[388812339,1759384243012,-151.0,0.00021253,2]
[388812340,1759384243022,-151.0,0.00021253,2]
[388812341,1759384243031,-284.239663,0.00021253,2]
[388812342,1759384243040,-151.0,0.00021253,2]
[388812343,1759384243049,-151.0,0.00021253,2]
[388812344,1759384243058,-153.681436,0.00021253,2]
[388812345,1759384243068,-5037.3130092,0.00021253,2]
[388812346,1759384243077,-502.62564647,0.00021273,2]
[388812347,1759384243086,-502.58474246,0.00021273,2]
[388812348,1759384243095,-500.0,0.00021273,2]
[388812349,1759384243104,-452.22561306,0.00021273,2]
[388812350,1759384243113,-500.0,0.00021273,2]
[388812351,1759384243122,-361.0,0.00021309,2]
[388812352,1759384243131,-151.48420439,0.00021399,2]
[388812353,1759384243140,-500.0,0.00021399,2]
[388812354,1759384243149,-500.0,0.00021399,2]
[388812355,1759384243159,-151.0,0.00021399,2]
[388812356,1759384243169,-500.0,0.00021399,2]
[388812357,1759384243178,-151.0,0.00021399,2]
[388812358,1759384243187,-289.10096108,0.00021399,2]
[388812359,1759384243196,-335.0,0.00021408,2]
[388812360,1759384243205,-842.4413158,0.00021427,2]
[388812361,1759384243215,-564.096981,0.00021432,2]
[388812363,1759384243224,-564.096981,0.00021432,2]
[388812364,1759384243233,-564.096981,0.00021432,2]
[388812365,1759384243243,-564.096981,0.00021432,2]
[388812366,1759384243252,-154.914794,0.00021432,2]
[388812367,1759384243261,-276.390973,0.00021432,2]
[388812368,1759384243270,-276.390973,0.00021432,2]
[388812369,1759384243279,-276.390973,0.00021432,2]
[388812370,1759384243288,-276.390973,0.00021432,2]
[388812371,1759384243298,-151.0,0.00021432,2]
[388812372,1759384243307,-151.0,0.00021432,2]
[388812373,1759384243317,-178.368434,0.00021432,2]
[388812374,1759384243326,-235.241281,0.00021432,2]
[388812376,1759384243335,-426.013856,0.00021432,2]
[388812378,1759384243344,-426.013856,0.00021432,2]
[388812380,1759384243353,-426.013856,0.00021432,2]
[388812381,1759384243363,-426.013862,0.00021432,2]
[388812382,1759384243372,-179.607915,0.00021432,2]
[388812383,1759384243380,-236.707441,0.00021432,2]
[388812384,1759384243390,-1000.0,0.00021521,2]
[388812385,1759384243398,-463.35229626,0.00021521,2]
[388812386,1759384243407,-502.64413986,0.00021521,2]
[388812387,1759384243416,-500.99839701,0.00021521,2]
[388812388,1759384243426,-969.30682101,0.00021521,2]
[388812389,1759384243436,-502.26452921,0.00021521,2]
[388812390,1759384243445,-501.33730105,0.00021521,2]
[388812391,1759384243454,-511.90518432,0.00021521,2]
[388812392,1759384243464,-1000.0,0.00021521,2]
[388812393,1759384243477,-1000.0,0.00021521,2]
[388812394,1759384243486,-1000.0,0.00021521,2]
[388812395,1759384243496,-1000.0,0.00021521,2]
[388812396,1759384243505,-1002.17830285,0.00021521,2]
[388812397,1759384243515,-1000.0,0.00021521,2]
[388812398,1759384243524,-1000.0,0.00021521,2]
[388812399,1759384243533,-455.59347907,0.00021521,2]
[388812400,1759384243543,-420.0,0.00021648,2]
[388812401,1759384243553,-408.0,0.00021662,2]
[388812402,1759384243562,-500.0,0.00021673,2]
[388812403,1759384243571,-500.0,0.00021673,2]
[388812404,1759384243580,-501.62775985,0.00021673,2]
[388812405,1759384243590,-501.54152828,0.00021673,2]
[388812406,1759384243599,-303.14886399,0.00021673,2]
[388812407,1759384243609,-500.0,0.00021673,2]
[388812408,1759384243618,-500.0,0.00021673,2]
[388812409,1759384243628,-500.0,0.00021673,2]
[388812410,1759384243638,-509.83073558,0.00021673,2]
[388812411,1759384243647,-502.35773185,0.00021673,2]
[388812412,1759384243658,-501.03166712,0.00021673,2]
[388812413,1759384243667,-500.0,0.00021673,2]
[388812414,1759384243677,-500.94328462,0.00021673,2]
[388812415,1759384243686,-500.51909188,0.00021673,2]
[388812416,1759384243695,-501.60768823,0.00021673,2]
[388812417,1759384243705,-500.0,0.00021673,2]
[388812418,1759384243715,-500.0,0.00021673,2]
[388812419,1759384243724,-500.0,0.00021673,2]
[388812420,1759384243733,-151.0,0.00021673,2]
[388812421,1759384243743,-500.0,0.00021673,2]
[388812422,1759384243752,-151.0,0.00021673,2]
[388812423,1759384243761,-151.0,0.00021673,2]
[388812424,1759384243771,-764.20134,0.00021673,2]
[388812425,1759384243779,-764.20134,0.00021673,2]
[388812426,1759384243789,-764.20134,0.00021673,2]
[388812427,1759384243798,-764.20134,0.00021673,2]
[388812428,1759384243808,-564.096981,0.00021673,2]
[388812429,1759384243818,-564.096981,0.00021673,2]
[388812430,1759384243827,-564.096981,0.00021673,2]
[388812431,1759384243835,-564.096981,0.00021673,2]
[388812432,1759384243844,-276.390973,0.00021673,2]
[388812433,1759384243853,-276.390973,0.00021673,2]
[388812434,1759384243862,-276.390973,0.00021673,2]
[388812435,1759384243871,-276.390973,0.00021673,2]
[388812436,1759384243880,-151.0,0.00021673,2]
[388812437,1759384243889,-151.0,0.00021673,2]
[388812438,1759384243898,-161.53600708,0.00021687,2]
[388812439,1759384243907,-200.0,0.00021687,2]
[388812440,1759384243917,-18448.21799207,0.00021688,2]
[388812441,1759384243926,-151.0,0.00021688,2]
[388812442,1759384243935,-151.0,0.00021688,2]
[388812443,1759384243944,-151.0,0.00021688,2]
[388812444,1759384243953,-151.0,0.00021688,2]
[388812445,1759384243962,-151.0,0.00021688,2]
[388812446,1759384243972,-224.470643,0.00021688,2]
[388812447,1759384243981,-151.0,0.00021688,2]
[388812448,1759384243990,-151.0,0.00021688,2]
[388812449,1759384243999,-151.0,0.00021688,2]
[388812450,1759384244008,-162.027127,0.00021688,2]
[388812451,1759384244018,-151.699416,0.00021688,2]
[388812452,1759384244027,-152.354403,0.00021688,2]
[388812453,1759384244036,-151.0,0.00021688,2]
[388812454,1759384244046,-151.0,0.00021688,2]
[388812455,1759384244056,-151.0,0.00021688,2]
[388812456,1759384244065,-151.0,0.00021688,2]
[388812457,1759384244074,-151.0,0.00021688,2]
[388812458,1759384244083,-151.0,0.00021688,2]
[388812459,1759384244093,-184.264457,0.00021688,2]
[388812460,1759384244102,-151.588254,0.00021688,2]
[388812461,1759384244111,-151.0,0.00021688,2]
[388812462,1759384244120,-153.589604,0.00021688,2]
[388812463,1759384244129,-151.0,0.00021688,2]
[388812464,1759384244139,-151.0,0.00021688,2]
[388812465,1759384244148,-151.0,0.00021688,2]
[388812466,1759384244157,-152.230061,0.00021688,2]
[388812467,1759384244166,-151.0,0.00021688,2]
[388812468,1759384244175,-242.596328,0.00021688,2]
[388812469,1759384244184,-157.615,0.00021688,2]
[388812470,1759384244193,-280.073956,0.00021688,2]
[388812471,1759384244202,-151.0,0.00021688,2]
[388812472,1759384244211,-151.0,0.00021688,2]
[388812473,1759384244220,-153.422214,0.00021688,2]
[388812474,1759384244229,-151.74107027,0.00021688,2]
[388812475,1759384244238,-500.0,0.00021688,2]
[388812476,1759384244247,-151.0,0.00021688,2]
[388812477,1759384244257,-156.176195,0.00021688,2]
[388812478,1759384244266,-151.0,0.00021688,2]
[388812479,1759384244275,-151.0,0.00021688,2]
[388812480,1759384244286,-151.0,0.00021688,2]
[388812481,1759384244296,-151.0,0.00021688,2]
[388812482,1759384244306,-151.0,0.00021688,2]
[388812483,1759384244339,-151.0,0.00021688,2]
[388812484,1759384244349,-151.0,0.00021688,2]
[388812485,1759384244360,-151.0,0.00021688,2]
[388812486,1759384244371,-151.0,0.00021688,2]
[388812487,1759384244381,-195.22068,0.00021688,2]
[388812488,1759384244390,-151.0,0.00021688,2]
[388812489,1759384244400,-241.6,0.00021688,2]
[388812490,1759384244411,-151.0,0.00021688,2]
[388812491,1759384244422,-151.0,0.00021688,2]
[388812492,1759384244433,-151.0,0.00021688,2]
[388812493,1759384244442,-151.0,0.00021688,2]
[388812494,1759384244451,-151.0,0.00021688,2]
[388812495,1759384244462,-151.0,0.00021688,2]
[388812496,1759384244477,-764.20134,0.00021688,2]
[388812497,1759384244486,-764.20134,0.00021688,2]
[388812498,1759384244495,-764.20134,0.00021688,2]
[388812499,1759384244505,-764.20134,0.00021688,2]
[388812500,1759384244515,-764.20134,0.00021688,2]
[388812501,1759384244524,-764.20134,0.00021688,2]
[388812502,1759384244534,-764.20134,0.00021688,2]
[388812503,1759384244543,-764.20134,0.00021688,2]
[388812504,1759384244555,-764.20134,0.00021688,2]
[388812505,1759384244564,-764.20134,0.00021688,2]
[388812506,1759384244574,-764.20134,0.00021688,2]
[388812507,1759384244584,-764.20135,0.00021688,2]
[388812508,1759384244593,-500.0,0.00021688,2]
[388812509,1759384244602,-500.0,0.00021688,2]
[388812510,1759384244612,-151.0,0.00021688,2]
[388812511,1759384244621,-151.0,0.00021688,2]
[388812512,1759384244630,-564.096981,0.00021688,2]
[388812513,1759384244640,-564.096981,0.00021688,2]
[388812514,1759384244649,-564.096981,0.00021688,2]
[388812515,1759384244658,-564.096981,0.00021688,2]
[388812516,1759384244667,-564.096981,0.00021688,2]
[388812517,1759384244676,-564.096981,0.00021688,2]
[388812518,1759384244685,-564.096981,0.00021688,2]
[388812519,1759384244695,-564.096985,0.00021688,2]
[388812520,1759384244704,-276.390973,0.00021688,2]
[388812521,1759384244714,-276.390973,0.00021688,2]
[388812522,1759384244723,-276.390973,0.00021688,2]
[388812523,1759384244732,-276.390973,0.00021688,2]
[388812524,1759384244741,-276.390973,0.00021688,2]
[388812525,1759384244751,-276.390973,0.00021688,2]
[388812526,1759384244761,-276.390973,0.00021688,2]
[388812527,1759384244770,-276.390969,0.00021688,2]
[388812528,1759384244779,-151.0,0.00021688,2]
[388812529,1759384244789,-151.0,0.00021688,2]
[388812530,1759384244799,-151.0,0.00021688,2]
[388812531,1759384244808,-151.0,0.00021688,2]
[388812532,1759384244817,-151.0,0.00021688,2]
[388812533,1759384244827,-503.0,0.00021688,2]
[388812534,1759384244836,-151.0,0.00021688,2]
[388812535,1759384244845,-151.0,0.00021688,2]
[388812536,1759384244855,-500.0,0.00021688,2]
[388812537,1759384244864,-151.0,0.00021688,2]
[388812538,1759384244874,-500.0,0.00021688,2]
[388812539,1759384244883,-6661.19894326,0.00021718,2]
[388812540,1759384244893,-1000.0,0.00021821,2]
[388812541,1759384244902,-894.70114169,0.00021821,2]
[388812542,1759384244911,-160.0,0.00021833,2]
[388812543,1759384244920,-503.43372055,0.00021873,2]
[388812544,1759384244930,-500.0,0.00021873,2]
[388812545,1759384244940,-500.0,0.00021873,2]
[388812546,1759384244949,-500.0,0.00021873,2]
[388812547,1759384244958,-501.57190292,0.00021873,2]
[388812548,1759384244967,-500.0,0.00021873,2]
[388812549,1759384244977,-500.0,0.00021873,2]
[388812550,1759384244986,-500.0,0.00021873,2]
[388812551,1759384244996,-500.0,0.00021873,2]
[388812552,1759384245005,-480.54604093,0.00021889,2]
[388812553,1759384245014,-173212.51430149,0.000219,2]
[388812554,1759384245098,-5261.36895573,0.000219,2]
[388812555,1759384245178,-0.00188005,0.000219,2]
[388812748,1759384259764,500.0,0.0003357,60]
[388812749,1759384260013,308.78798777,0.0003357,60]
[388812750,1759384264470,480.0,0.0003357,60]
[388812751,1759384282242,480.0,0.0003357,60]
[388812752,1759384296180,480.0,0.0003357,60]
[388812753,1759384302744,500.0,0.0003357,60]
[388812754,1759384302978,500.0,0.0003357,60]
[388812755,1759384303215,316.31129046,0.0003357,60]
[388812756,1759384306141,500.0,0.0003357,60]
[388812757,1759384306337,392.56,0.0003357,60]
[388812758,1759384315977,480.0,0.0003357,60]
[388812759,1759384333629,500.0,0.0003357,60]
[388812760,1759384333867,500.0,0.0003357,60]
[388812761,1759384334108,500.0,0.0003357,60]
[388812762,1759384334382,500.0,0.0003357,60]
[388812763,1759384334639,408.10344595,0.0003357,60]
[388812764,1759384334884,480.0,0.0003357,60]
[388812765,1759384336450,500.0,0.0003357,60]
[388812766,1759384336670,483.37,0.0003357,60]
[388812767,1759384345356,480.0,0.0003357,60]
[388812768,1759384377101,480.0,0.0003357,60]
[388812769,1759384389068,593.79,0.00033538,60]
[388812770,1759384398172,592.78,0.00033538,60]
[388812771,1759384399297,583.97,0.00033538,60]
[388812773,1759384428348,500.0,0.00033538,60]
[388812774,1759384428606,500.0,0.00033538,60]
[388812775,1759384428837,500.0,0.00033538,60]
[388812776,1759384429067,500.0,0.00033538,60]
[388812777,1759384429312,500.0,0.00033538,60]
[388812778,1759384429551,500.0,0.00033538,60]
[388812779,1759384429824,231.72,0.00033538,60]
[388812780,1759384446041,505.4,0.00033538,60]
[388812781,1759384459027,480.0,0.00033538,60]
[388812782,1759384468454,480.0,0.00033538,60]
[388812783,1759384487331,480.0,0.00033538,60]
[388812784,1759384496402,480.0,0.00033538,60]
[388812785,1759384505015,480.0,0.00033538,60]
[388812786,1759384548022,500.0,0.00033538,60]
[388812787,1759384548271,500.0,0.00033538,60]
[388812788,1759384548502,500.0,0.00033538,60]
[388812789,1759384548791,420.0,0.00033538,60]
[388812790,1759384552637,480.0,0.00033538,60]
[388812791,1759384552704,480.0,0.00033538,60]
[388812792,1759384583854,480.0,0.00033538,60]
[388812793,1759384597591,480.0,0.00033538,60]
[388812794,1759384619252,500.0,0.00033538,60]
[388812795,1759384619494,500.0,0.00033538,60]
[388812796,1759384619730,500.0,0.00033538,60]
[388812797,1759384619956,500.0,0.00033538,60]
[388812798,1759384620183,500.0,0.00033538,60]
[388812799,1759384620422,500.0,0.00033538,60]
[388812800,1759384620673,279.0,0.00033538,60]
[388812801,1759384626772,500.0,0.00033538,60]
[388812802,1759384627011,352.27077276,0.00033538,60]
[388812803,1759384657381,480.0,0.00033538,60]
[388812804,1759384658554,500.0,0.00033538,60]
[388812805,1759384658992,405.68,0.00033538,60]
[388812806,1759384668889,480.0,0.00033538,60]
[388812807,1759384673201,594.03,0.00033538,60]
[388812808,1759384718346,480.0,0.00033549,60]
[388812809,1759384725674,480.0,0.00033549,60]
[388812815,1759384727627,480.0,0.00033549,60]
[388812816,1759384758507,480.0,0.00033549,60]
[388812817,1759384781246,589.48,0.00033549,60]
[388812818,1759384782145,550.73,0.00033549,60]
[388812819,1759384784117,500.0,0.00033549,60]
[388812820,1759384784173,199.45,0.00033549,60]
[388812821,1759384800900,597.9,0.00033549,60]
[388812822,1759384801646,480.0,0.00033549,60]
[388812823,1759384802777,480.0,0.00033549,60]
[388812825,1759384819590,203.0,0.00028767,120]
[388812826,1759384820434,500.0,0.00033549,60]
[388812827,1759384820665,500.0,0.00033549,60]
[388812828,1759384820897,432.59,0.00033549,60]
[388812829,1759384824344,500.0,0.00033549,60]
[388812830,1759384824761,499.17,0.00033549,60]
[388812831,1759384837125,500.0,0.00033549,60]
[388812832,1759384837188,480.0,0.00033549,60]
[388812833,1759384837364,290.72,0.00033549,60]
[388812834,1759384849371,480.0,0.00033549,60]
[388812835,1759384856667,500.0,0.00033549,60]
[388812836,1759384856788,500.0,0.00033549,60]
[388812837,1759384857011,440.0,0.00033549,60]
[388812838,1759384996336,539.0,0.00028767,120]
[388812844,1759385102283,480.0,0.00033549,60]
[388812845,1759385126150,480.0,0.00033549,60]
[388812846,1759385160833,480.0,0.00033549,60]
[388812847,1759385170531,500.0,0.00033549,60]
[388812848,1759385170809,500.0,0.00033549,60]
[388812849,1759385171049,500.0,0.00033549,60]
[388812850,1759385171298,500.0,0.00033549,60]
[388812851,1759385171565,500.0,0.00033549,60]